fUSD/lending_fUSD_20260621
["ID","MTS","AMOUNT","RATE_DAILY","PERIOD"]
[425860175,1782007851000,-805.85,0.00029589,2]
[425860186,1782007851000,-500.0,0.00029589,2]
[425860189,1782007851000,-500.0,0.00029589,2]
[425860174,1782007851000,-458.74938212,0.00029589,2]
[425860176,1782007851000,-500.0,0.00029589,2]
[425860177,1782007851000,-500.0,0.00029589,2]
[425860178,1782007851000,-500.0,0.00029589,2]
[425860184,1782007851000,-500.0,0.00029589,2]
[425860182,1782007851000,-500.0,0.00029589,2]
[425860179,1782007851000,-631.48,0.00029589,2]
[425860180,1782007851000,-500.0,0.00029589,2]
[425860181,1782007851000,-500.0,0.00029589,2]
[425860191,1782007851000,-500.0,0.00029589,2]
[425860188,1782007851000,-806.3,0.00029589,2]
[425860251,1782007851000,-1240.21,0.00029589,2]
[425860239,1782007851000,-500.0,0.00029589,2]
[425860257,1782007851000,-500.0,0.00029589,2]
[425860324,1782007851000,-2850.84,0.00029589,2]
[425860331,1782007851000,-918.35,0.00029589,2]
[425860328,1782007851000,-500.0,0.00029589,2]
[425860333,1782007851000,-838.3,0.00029589,2]
[425860335,1782007851000,-500.0,0.00029589,2]
[425860349,1782007851000,-500.0,0.00029589,2]
[425860340,1782007851000,-500.0,0.00029589,2]
[425860337,1782007851000,-500.0,0.00029589,2]
[425860344,1782007851000,-500.0,0.00029589,2]
[425860351,1782007851000,-500.0,0.00029589,2]
[425860347,1782007851000,-500.0,0.00029589,2]
[425860353,1782007851000,-500.0,0.00029589,2]
[425860320,1782007851000,-500.0,0.00029589,2]
[425860342,1782007851000,-500.0,0.00029589,2]
[425860359,1782007851000,-500.0,0.00029589,2]
[425860355,1782007851000,-2341.75,0.00029589,2]
[425860363,1782007851000,-233.48137843,0.00029589,2]
[425860365,1782007851000,-500.0,0.00029589,2]
[425860369,1782007851000,-500.0,0.00029589,2]
[425860361,1782007851000,-510.09121004,0.00029589,2]
[425860367,1782007851000,-500.0,0.00029589,2]
[425860380,1782007851000,-500.0,0.00029589,2]
[425860373,1782007851000,-151.0,0.00029589,7]
[425860383,1782007851000,-467.71267583,0.00029589,2]
[425860371,1782007851000,-500.0,0.00029589,2]
[425860374,1782007851000,-1102.68,0.00029589,2]
[425860356,1782007851000,-5405.83,0.00029589,2]
[425860326,1782007851000,-500.0,0.00029589,2]
[425860255,1782007851000,-500.0,0.00029589,2]
[425860322,1782007851000,-500.0,0.00029589,2]
[425860263,1782007851000,-500.0,0.00029589,2]
[425860267,1782007851000,-500.0,0.00029589,2]
[425860273,1782007851000,-2206.55,0.00029589,2]
[425860265,1782007851000,-500.0,0.00029589,2]
[425860279,1782007851000,-500.0,0.00029589,2]
[425860281,1782007851000,-500.0,0.00029589,2]
[425860271,1782007851000,-554.78,0.00029589,2]
[425860317,1782007851000,-500.0,0.00029589,2]
[425860269,1782007851000,-500.0,0.00029589,2]
[425860277,1782007851000,-500.0,0.00029589,2]
[425860275,1782007851000,-1658.21,0.00029589,2]
[425860283,1782007851000,-835.6,0.00029589,2]
[425860286,1782007851000,-973.09,0.00029589,2]
[425860376,1782007851000,-151.0,0.00029589,7]
[425860291,1782007851000,-500.0,0.00029589,2]
[425860288,1782007851000,-500.0,0.00029589,2]
[425860313,1782007851000,-500.0,0.00029589,2]
[425860308,1782007851000,-500.0,0.00029589,2]
[425860310,1782007851000,-486.51243225,0.00029589,2]
[425860306,1782007851000,-883.13,0.00029589,2]
[425860302,1782007851000,-500.0,0.00029589,2]
[425860315,1782007851000,-500.0,0.00029589,2]
[425860299,1782007851000,-500.0,0.00029589,2]
[425860290,1782007851000,-500.0,0.00029589,2]
[425860295,1782007851000,-500.0,0.00029589,2]
[425860297,1782007851000,-500.0,0.00029589,2]
[425860304,1782007851000,-500.0,0.00029589,2]
[425860293,1782007851000,-500.0,0.00029589,2]
[425860469,1782007852000,-500.0,0.00029589,2]
[425860464,1782007852000,-537.47,0.00029589,2]
[425860467,1782007852000,-500.0,0.00029589,2]
[425860471,1782007852000,-571.92994696,0.00029589,2]
[425860462,1782007852000,-1188.72,0.00029589,2]
[425860452,1782007852000,-500.0,0.00029589,2]
[425860458,1782007852000,-500.0,0.00029589,2]
[425860450,1782007852000,-1121.47,0.00029589,2]
[425860454,1782007852000,-500.0,0.00029589,2]
[425860447,1782007852000,-505.79919415,0.00029589,2]
[425860448,1782007852000,-500.0,0.00029589,2]
[425860481,1782007852000,-610.94,0.00029589,2]
[425860507,1782007852000,-4229.39,0.00029589,2]
[425860473,1782007852000,-500.0,0.00029589,2]
[425860477,1782007852000,-500.0,0.00029589,2]
[425860479,1782007852000,-627.87017361,0.00029589,2]
[425860483,1782007852000,-750.88,0.00029589,2]
[425860485,1782007852000,-775.85,0.00029589,2]
[425860489,1782007852000,-463.80860223,0.00029589,2]
[425860487,1782007852000,-2858.65,0.00029589,2]
[425860497,1782007852000,-561.79426895,0.00029589,2]
[425860491,1782007852000,-500.0,0.00029589,2]
[425860505,1782007852000,-500.0,0.00029589,2]
[425860499,1782007852000,-849.69,0.00029589,2]
[425860493,1782007852000,-500.0,0.00029589,2]
[425860460,1782007852000,-907.35,0.00029589,2]
[425860475,1782007852000,-500.0,0.00029589,2]
[425860439,1782007852000,-500.0,0.00029589,2]
[425860415,1782007852000,-194.71251014,0.00029589,2]
[425860436,1782007852000,-643.53,0.00029589,2]
[425860495,1782007852000,-500.0,0.00029589,2]
[425860387,1782007852000,-500.0,0.00029589,2]
[425860389,1782007852000,-500.0,0.00029589,2]
[425860394,1782007852000,-500.0,0.00029589,2]
[425860392,1782007852000,-500.0,0.00029589,2]
[425860401,1782007852000,-500.0,0.00029589,2]
[425860397,1782007852000,-1282.23,0.00029589,2]
[425860405,1782007852000,-500.0,0.00029589,2]
[425860399,1782007852000,-500.0,0.00029589,2]
[425860396,1782007852000,-609.07,0.00029589,2]
[425860407,1782007852000,-500.0,0.00029589,2]
[425860409,1782007852000,-500.0,0.00029589,2]
[425860403,1782007852000,-910.52,0.00029589,2]
[425860411,1782007852000,-500.0,0.00029589,2]
[425860420,1782007852000,-2741.87,0.00029589,2]
[425860422,1782007852000,-500.0,0.00029589,2]
[425860417,1782007852000,-500.0,0.00029589,2]
[425860413,1782007852000,-555.92,0.00029589,2]
[425860432,1782007852000,-500.0,0.00029589,2]
[425860430,1782007852000,-821.4,0.00029589,2]
[425860424,1782007852000,-500.0,0.00029589,2]
[425860426,1782007852000,-500.0,0.00029589,2]
[425860428,1782007852000,-516.93944994,0.00029589,2]
[425860434,1782007852000,-1564.75,0.00029589,2]
[425860445,1782007852000,-500.0,0.00029589,2]
[425860456,1782007852000,-2476.08,0.00029589,2]
[425860441,1782007852000,-500.0,0.00029589,2]
[425860443,1782007852000,-500.0,0.00029589,2]
[425860385,1782007852000,-500.0,0.00029589,2]
[425860509,1782007852000,-500.0,0.00029589,2]
[425860502,1782007852000,-306.33932318,0.00029589,2]
[425860578,1782007852000,-500.0,0.00029589,2]
[425860570,1782007852000,-721.72,0.00029589,2]
[425860572,1782007852000,-389.99772813,0.00029589,2]
[425860583,1782007852000,-500.0,0.00029589,2]
[425860582,1782007852000,-500.0,0.00029589,2]
[425860589,1782007852000,-500.0,0.00029589,2]
[425860586,1782007852000,-500.0,0.00029589,2]
[425860587,1782007852000,-500.0,0.00029589,2]
[425860591,1782007852000,-649.82444525,0.00029589,2]
[425860593,1782007852000,-803.3,0.00029589,2]
[425860595,1782007852000,-500.0,0.00029589,2]
[425860603,1782007852000,-500.0,0.00029589,2]
[425860605,1782007852000,-510.52498672,0.00029589,2]
[425860597,1782007852000,-500.0,0.00029589,2]
[425860599,1782007852000,-500.0,0.00029589,2]
[425860601,1782007852000,-500.0,0.00029589,2]
[425860610,1782007852000,-500.0,0.00029589,2]
[425860607,1782007852000,-500.0,0.00029589,2]
[425860612,1782007852000,-500.0,0.00029589,2]
[425860616,1782007852000,-503.61481913,0.00029589,2]
[425860614,1782007852000,-539.93,0.00029589,2]
[425860617,1782007852000,-520.05478942,0.00029589,2]
[425860627,1782007852000,-500.0,0.00029589,2]
[425860621,1782007852000,-500.0,0.00029589,2]
[425860619,1782007852000,-2586.74,0.00029589,2]
[425860623,1782007852000,-500.0,0.00029589,2]
[425860503,1782007852000,-500.0,0.00029589,2]
[425860576,1782007852000,-897.23,0.00029589,2]
[425860580,1782007852000,-889.79,0.00029589,2]
[425860625,1782007852000,-500.0,0.00029589,2]
[425860567,1782007852000,-1225.01,0.00029589,2]
[425860511,1782007852000,-779.82,0.00029589,2]
[425860516,1782007852000,-496.38614551,0.00029589,2]
[425860522,1782007852000,-408.36170271,0.00029589,2]
[425860514,1782007852000,-500.0,0.00029589,2]
[425860518,1782007852000,-640.19,0.00029589,2]
[425860520,1782007852000,-728.08,0.00029589,2]
[425860524,1782007852000,-500.0,0.00029589,2]
[425860574,1782007852000,-547.52,0.00029589,2]
[425860530,1782007852000,-662.97,0.00029589,2]
[425860528,1782007852000,-234.34851381,0.00029589,2]
[425860532,1782007852000,-1289.65,0.00029589,2]
[425860534,1782007852000,-500.0,0.00029589,2]
[425860536,1782007852000,-500.0,0.00029589,2]
[425860526,1782007852000,-467.22077463,0.00029589,2]
[425860538,1782007852000,-500.0,0.00029589,2]
[425860543,1782007852000,-1000.0,0.00029589,2]
[425860565,1782007852000,-607.9,0.00029589,2]
[425860563,1782007852000,-500.0,0.00029589,2]
[425860561,1782007852000,-500.0,0.00029589,2]
[425860555,1782007852000,-500.0,0.00029589,2]
[425860549,1782007852000,-500.0,0.00029589,2]
[425860559,1782007852000,-500.0,0.00029589,2]
[425860553,1782007852000,-829.94,0.00029589,2]
[425860547,1782007852000,-500.0,0.00029589,2]
[425860551,1782007852000,-500.0,0.00029589,2]
[425860540,1782007852000,-500.0,0.00029589,2]
[425860545,1782007852000,-500.0,0.00029589,2]
[425860557,1782007852000,-943.81,0.00029589,2]
[425860715,1782007853000,-500.0,0.00029589,2]
[425860713,1782007853000,-500.0,0.00029589,2]
[425860709,1782007853000,-500.0,0.00029589,2]
[425860711,1782007853000,-500.0,0.00029589,2]
[425860700,1782007853000,-500.0,0.00029589,2]
[425860694,1782007853000,-500.0,0.00029589,2]
[425860704,1782007853000,-500.0,0.00029589,2]
[425860696,1782007853000,-500.0,0.00029589,2]
[425860707,1782007853000,-1104.22,0.00029589,2]
[425860698,1782007853000,-500.0,0.00029589,2]
[425860702,1782007853000,-6945.58,0.00029589,2]
[425860718,1782007853000,-500.0,0.00029589,2]
[425860737,1782007853000,-500.0,0.00029589,2]
[425860726,1782007853000,-7585.84,0.00029589,2]
[425860730,1782007853000,-530.22841652,0.00029589,2]
[425860724,1782007853000,-500.0,0.00029589,2]
[425860728,1782007853000,-500.0,0.00029589,2]
[425860722,1782007853000,-1741.3,0.00029589,2]
[425860720,1782007853000,-899.39,0.00029589,2]
[425860732,1782007853000,-500.0,0.00029589,2]
[425860735,1782007853000,-500.0,0.00029589,2]
[425860745,1782007853000,-2459.61,0.00029589,2]
[425860736,1782007853000,-500.0,0.00029589,2]
[425860734,1782007853000,-500.0,0.00029589,2]
[425860749,1782007853000,-500.0,0.00029589,2]
[425860688,1782007853000,-773.34,0.00029589,2]
[425860747,1782007853000,-500.0,0.00029589,2]
[425860690,1782007853000,-600.79,0.00029589,2]
[425860663,1782007853000,-500.0,0.00029589,2]
[425860684,1782007853000,-500.0,0.00029589,2]
[425860629,1782007853000,-500.0,0.00029589,2]
[425860632,1782007853000,-689.95,0.00029589,2]
[425860636,1782007853000,-500.0,0.00029589,2]
[425860638,1782007853000,-500.0,0.00029589,2]
[425860642,1782007853000,-500.0,0.00029589,2]
[425860640,1782007853000,-302.01143908,0.00029589,2]
[425860655,1782007853000,-500.0,0.00029589,2]
[425860634,1782007853000,-500.0,0.00029589,2]
[425860653,1782007853000,-791.83,0.00029589,2]
[425860645,1782007853000,-500.0,0.00029589,2]
[425860647,1782007853000,-500.0,0.00029589,2]
[425860651,1782007853000,-500.0,0.00029589,2]
[425860692,1782007853000,-500.0,0.00029589,2]
[425860649,1782007853000,-500.0,0.00029589,2]
[425860661,1782007853000,-637.09,0.00029589,2]
[425860677,1782007853000,-1001.38520395,0.00029589,2]
[425860667,1782007853000,-558.31,0.00029589,2]
[425860669,1782007853000,-500.0,0.00029589,2]
[425860665,1782007853000,-500.0,0.00029589,2]
[425860671,1782007853000,-500.0,0.00029589,2]
[425860659,1782007853000,-500.0,0.00029589,2]
[425860680,1782007853000,-500.0,0.00029589,2]
[425860682,1782007853000,-500.0,0.00029589,2]
[425860675,1782007853000,-2137.72,0.00029589,2]
[425860673,1782007853000,-500.0,0.00029589,2]
[425860686,1782007853000,-215.23220042,0.00029589,2]
[425860657,1782007853000,-666.55,0.00029589,2]
[425860750,1782007853000,-500.0,0.00029589,2]
[425860781,1782007853000,-1044.77,0.00029589,2]
[425860738,1782007853000,-735.36,0.00029589,2]
[425860816,1782007853000,-835.77,0.00029589,2]
[425860806,1782007853000,-500.0,0.00029589,2]
[425860821,1782007853000,-500.0,0.00029589,2]
[425860817,1782007853000,-768.76,0.00029589,2]
[425860819,1782007853000,-500.0,0.00029589,2]
[425860823,1782007853000,-500.0,0.00029589,2]
[425860825,1782007853000,-500.0,0.00029589,2]
[425860827,1782007853000,-500.0,0.00029589,2]
[425860831,1782007853000,-160.0,0.00029589,3]
[425860829,1782007853000,-500.0,0.00029589,2]
[425860839,1782007853000,-160.0,0.00029589,3]
[425860833,1782007853000,-1002.23,0.00029589,2]
[425860812,1782007853000,-500.0,0.00029589,2]
[425860837,1782007853000,-983.14,0.00029589,2]
[425860835,1782007853000,-500.0,0.00029589,2]
[425860845,1782007853000,-163.39022516,0.00029589,3]
[425860848,1782007853000,-500.0,0.00029589,2]
[425860852,1782007853000,-500.0,0.00029589,2]
[425860850,1782007853000,-500.0,0.00029589,2]
[425860854,1782007853000,-500.0,0.00029589,2]
[425860856,1782007853000,-500.0,0.00029589,2]
[425860861,1782007853000,-548.82,0.00029589,2]
[425860858,1782007853000,-738.72,0.00029589,2]
[425860860,1782007853000,-947.1,0.00029589,2]
[425860863,1782007853000,-500.0,0.00029589,2]
[425860740,1782007853000,-8258.44,0.00029589,2]
[425860841,1782007853000,-919.53,0.00029589,2]
[425860814,1782007853000,-682.93,0.00029589,2]
[425860843,1782007853000,-160.0,0.00029589,3]
[425860810,1782007853000,-193.53019151,0.00029589,2]
[425860808,1782007853000,-500.0,0.00029589,2]
[425860742,1782007853000,-500.0,0.00029589,2]
[425860756,1782007853000,-500.0,0.00029589,2]
[425860758,1782007853000,-1026.93,0.00029589,2]
[425860760,1782007853000,-500.0,0.00029589,2]
[425860768,1782007853000,-500.0,0.00029589,2]
[425860762,1782007853000,-500.0,0.00029589,2]
[425860766,1782007853000,-500.0,0.00029589,2]
[425860770,1782007853000,-258.94276456,0.00029589,2]
[425860772,1782007853000,-601.15,0.00029589,2]
[425860776,1782007853000,-500.0,0.00029589,2]
[425860783,1782007853000,-181.1379437,0.00029589,2]
[425860785,1782007853000,-934.56,0.00029589,2]
[425860764,1782007853000,-577.18,0.00029589,2]
[425860804,1782007853000,-500.0,0.00029589,2]
[425860803,1782007853000,-1494.86,0.00029589,2]
[425860774,1782007853000,-500.0,0.00029589,2]
[425860801,1782007853000,-500.0,0.00029589,2]
[425860799,1782007853000,-229.34845272,0.00029589,2]
[425860797,1782007853000,-983.37,0.00029589,2]
[425860789,1782007853000,-500.0,0.00029589,2]
[425860795,1782007853000,-1824.7,0.00029589,2]
[425860787,1782007853000,-1798.91,0.00029589,2]
[425860779,1782007853000,-4860.74,0.00029589,2]
[425860793,1782007853000,-500.0,0.00029589,2]
[425860777,1782007853000,-3993.07,0.00029589,2]
[425860791,1782007853000,-500.0,0.00029589,2]
[425860940,1782007854000,-500.0,0.00029589,2]
[425860948,1782007854000,-500.0,0.00029589,2]
[425860938,1782007854000,-500.0,0.00029589,2]
[425860942,1782007854000,-500.0,0.00029589,2]
[425860946,1782007854000,-500.0,0.00029589,2]
[425860928,1782007854000,-500.0,0.00029589,2]
[425860934,1782007854000,-500.0,0.00029589,2]
[425860936,1782007854000,-500.0,0.00029589,2]
[425860944,1782007854000,-1200.88,0.00029589,2]
[425860932,1782007854000,-1072.82,0.00029589,2]
[425860949,1782007854000,-644.74,0.00029589,2]
[425860930,1782007854000,-500.0,0.00029589,2]
[425860953,1782007854000,-500.0,0.00029589,2]
[425860985,1782007854000,-500.0,0.00029589,2]
[425860959,1782007854000,-500.0,0.00029589,2]
[425860955,1782007854000,-500.0,0.00029589,2]
[425860957,1782007854000,-500.0,0.00029589,2]
[425860969,1782007854000,-500.0,0.00029589,2]
[425860971,1782007854000,-500.0,0.00029589,2]
[425860963,1782007854000,-639.72,0.00029589,2]
[425860961,1782007854000,-595.2010949,0.00029589,2]
[425860965,1782007854000,-500.0,0.00029589,2]
[425860967,1782007854000,-500.0,0.00029589,2]
[425860974,1782007854000,-500.0,0.00029589,2]
[425860988,1782007854000,-500.0,0.00029589,2]
[425860989,1782007854000,-784.17,0.00029589,2]
[425860926,1782007854000,-631.88,0.00029589,2]
[425860951,1782007854000,-715.45,0.00029589,2]
[425860924,1782007854000,-500.0,0.00029589,2]
[425860871,1782007854000,-500.0,0.00029589,2]
[425860918,1782007854000,-500.0,0.00029589,2]
[425860991,1782007854000,-500.0,0.00029589,2]
[425860867,1782007854000,-612.17,0.00029589,2]
[425860869,1782007854000,-500.0,0.00029589,2]
[425860865,1782007854000,-666.61,0.00029589,2]
[425860873,1782007854000,-500.0,0.00029589,2]
[425860875,1782007854000,-500.0,0.00029589,2]
[425860881,1782007854000,-500.0,0.00029589,2]
[425860879,1782007854000,-618.46,0.00029589,2]
[425860883,1782007854000,-732.98,0.00029589,2]
[425860877,1782007854000,-643.77,0.00029589,2]
[425860886,1782007854000,-500.0,0.00029589,2]
[425860890,1782007854000,-505.32255023,0.00029589,2]
[425860894,1782007854000,-7009.34318073,0.00029589,2]
[425860892,1782007854000,-432.11778434,0.00029589,2]
[425860888,1782007854000,-500.0,0.00029589,2]
[425860898,1782007854000,-545.89,0.00029589,2]
[425860896,1782007854000,-500.0,0.00029589,2]
[425860910,1782007854000,-777.4,0.00029589,2]
[425860902,1782007854000,-500.0,0.00029589,2]
[425860908,1782007854000,-500.0,0.00029589,2]
[425860916,1782007854000,-500.0,0.00029589,2]
[425860900,1782007854000,-1191.6,0.00029589,2]
[425860914,1782007854000,-500.0,0.00029589,2]
[425860906,1782007854000,-7152.85,0.00029589,2]
[425860922,1782007854000,-664.14,0.00029589,2]
[425860904,1782007854000,-649.84,0.00029589,2]
[425860912,1782007854000,-500.0,0.00029589,2]
[425860920,1782007854000,-5628.49,0.00029589,2]
[425860993,1782007854000,-3375.54,0.00029589,2]
[425860976,1782007854000,-500.0,0.00029589,2]
[425860980,1782007854000,-500.0,0.00029589,2]
[425861043,1782007854000,-500.0,0.00029862,2]
[425861044,1782007854000,-500.0,0.00029862,2]
[425861035,1782007854000,-1302.86808883,0.00029862,2]
[425861032,1782007854000,-1302.86808883,0.00029862,2]
[425861037,1782007854000,-1302.86808883,0.00029862,2]
[425861039,1782007854000,-1302.86808882,0.00029862,2]
[425861036,1782007854000,-1302.86808883,0.00029862,2]
[425861041,1782007854000,-1302.86808882,0.00029862,2]
[425861040,1782007854000,-1302.86808882,0.00029862,2]
[425861038,1782007854000,-1302.86808882,0.00029862,2]
[425861042,1782007854000,-500.0,0.00029862,2]
[425861048,1782007854000,-500.0,0.00029862,2]
[425861053,1782007854000,-500.0,0.00029862,2]
[425861033,1782007854000,-1302.86808883,0.00029862,2]
[425861055,1782007854000,-500.0,0.00029862,2]
[425861045,1782007854000,-500.0,0.00029862,2]
[425861062,1782007854000,-34734.8609306,0.00029863,2]
[425861046,1782007854000,-500.0,0.00029862,2]
[425861049,1782007854000,-500.0,0.00029862,2]
[425861051,1782007854000,-500.0,0.00029862,2]
[425861059,1782007854000,-517.12268671,0.00029862,2]
[425861061,1782007854000,-580.40665381,0.00029862,2]
[425861056,1782007854000,-500.0,0.00029862,2]
[425861073,1782007854000,-300.0,0.00029863,2]
[425861072,1782007854000,-500.0,0.00029863,2]
[425861067,1782007854000,-161.0,0.00029863,30]
[425861069,1782007854000,-500.0,0.00029863,2]
[425860978,1782007854000,-500.0,0.00029589,2]
[425861064,1782007854000,-160.0,0.00029863,30]
[425861031,1782007854000,-167.38742914,0.00029856,30]
[425861034,1782007854000,-1302.86808883,0.00029862,2]
[425861029,1782007854000,-202.0,0.00029856,30]
[425860984,1782007854000,-574.04,0.00029589,2]
[425861071,1782007854000,-166.70260515,0.00029863,2]
[425860981,1782007854000,-576.34,0.00029589,2]
[425860995,1782007854000,-500.0,0.00029589,2]
[425860998,1782007854000,-167.0234,0.00029589,2]
[425861011,1782007854000,-160.0,0.00029715,3]
[425861010,1782007854000,-1200.0,0.000297,10]
[425861012,1782007854000,-500.35893196,0.0002972,2]
[425861030,1782007854000,-154.0,0.00029856,30]
[425861013,1782007854000,-499.90500001,0.0002975,2]
[425861003,1782007854000,-592.59198581,0.00029589,2]
[425861007,1782007854000,-389.62152516,0.000296,2]
[425861001,1782007854000,-500.0,0.00029589,2]
[425860999,1782007854000,-500.0,0.00029589,2]
[425861014,1782007854000,-167.0234,0.00029789,2]
[425861008,1782007854000,-500.35893196,0.00029631,2]
[425861006,1782007854000,-150.0,0.00029589,2]
[425861005,1782007854000,-500.0,0.00029589,2]
[425861015,1782007854000,-250.0,0.00029795,14]
[425861017,1782007854000,-156.0,0.00029856,30]
[425861018,1782007854000,-154.0,0.00029856,30]
[425861024,1782007854000,-162.0,0.00029856,30]
[425861022,1782007854000,-157.0,0.00029856,30]
[425861021,1782007854000,-160.0,0.00029856,30]
[425861019,1782007854000,-161.0,0.00029856,30]
[425861026,1782007854000,-155.0,0.00029856,30]
[425861016,1782007854000,-1500.0,0.000298,10]
[425861009,1782007854000,-1123.45,0.000297,30]
[425861028,1782007854000,-152.0,0.00029856,30]
[425861089,1782007855000,-500.0,0.00029863,2]
[425861095,1782007855000,-471.38819263,0.00029863,2]
[425861091,1782007855000,-500.0,0.00029863,2]
[425861087,1782007855000,-500.0,0.00029863,2]
[425861093,1782007855000,-500.0,0.00029863,2]
[425861086,1782007855000,-500.0,0.00029863,2]
[425861074,1782007855000,-500.0,0.00029863,2]
[425861082,1782007855000,-500.0,0.00029863,2]
[425861080,1782007855000,-500.0,0.00029863,2]
[425861079,1782007855000,-500.0,0.00029863,2]
[425861077,1782007855000,-500.0,0.00029863,2]
[425861088,1782007855000,-500.0,0.00029863,2]
[425861085,1782007855000,-500.0,0.00029863,2]
[425861096,1782007855000,-500.0,0.00029863,2]
[425861113,1782007855000,-500.0,0.00029863,2]
[425861104,1782007855000,-535.48279805,0.00029863,2]
[425861098,1782007855000,-500.0,0.00029863,2]
[425861115,1782007855000,-161.00287,0.00029863,2]
[425861110,1782007855000,-500.0,0.00029863,2]
[425861111,1782007855000,-608.00263635,0.00029863,2]
[425861112,1782007855000,-500.0,0.00029863,2]
[425861109,1782007855000,-33950.14451153,0.00029863,2]
[425861114,1782007855000,-500.0,0.00029863,2]
[425861107,1782007855000,-6712.19109012,0.00029863,2]
[425861106,1782007855000,-533.17083963,0.00029863,2]
[425861102,1782007855000,-500.0,0.00029863,2]
[425861100,1782007855000,-500.0,0.00029863,2]
[425861105,1782007855000,-500.0,0.00029863,2]
[425861108,1782007855000,-3977.09654835,0.00029863,2]
[425861140,1782007856000,-1612.67,0.00029863,2]
[425861133,1782007856000,-500.0,0.00029863,2]
[425861132,1782007856000,-500.0,0.00029863,2]
[425861136,1782007856000,-500.0,0.00029863,2]
[425861145,1782007856000,-500.0,0.00029863,2]
[425861144,1782007856000,-500.0,0.00029863,2]
[425861146,1782007856000,-500.0,0.00029863,2]
[425861142,1782007856000,-500.0,0.00029863,2]
[425861141,1782007856000,-500.0,0.00029863,2]
[425861138,1782007856000,-500.0,0.00029863,2]
[425861143,1782007856000,-500.0,0.00029863,2]
[425861137,1782007856000,-500.0,0.00029863,2]
[425861129,1782007856000,-500.0,0.00029863,2]
[425861156,1782007856000,-500.0,0.00029863,2]
[425861139,1782007856000,-500.0,0.00029863,2]
[425861127,1782007856000,-502.53033442,0.00029863,2]
[425861135,1782007856000,-198.50368607,0.00029863,2]
[425861126,1782007856000,-500.0,0.00029863,2]
[425861120,1782007856000,-500.0,0.00029863,2]
[425861121,1782007856000,-500.0,0.00029863,2]
[425861154,1782007856000,-500.0,0.00029863,2]
[425861122,1782007856000,-500.0,0.00029863,2]
[425861123,1782007856000,-500.0,0.00029863,2]
[425861116,1782007856000,-224.13349375,0.00029863,2]
[425861131,1782007856000,-500.0,0.00029863,2]
[425861117,1782007856000,-500.0,0.00029863,2]
[425861119,1782007856000,-500.0,0.00029863,2]
[425861125,1782007856000,-500.0,0.00029863,2]
[425861124,1782007856000,-500.0,0.00029863,2]
[425861134,1782007856000,-500.0,0.00029863,2]
[425861128,1782007856000,-500.0,0.00029863,2]
[425861130,1782007856000,-500.0,0.00029863,2]
[425861118,1782007856000,-500.0,0.00029863,2]
[425861152,1782007856000,-500.0,0.00029863,2]
[425861182,1782007856000,-500.0,0.00029863,2]
[425861153,1782007856000,-500.0,0.00029863,2]